[Event "50th La Roda Open 2024"]
[Site "La Roda"]
[Date "2024.03.27"]
[Round "1.7"]
[White "Rubio Caceres, Aaron"]
[Black "Peralta, Fernando"]
[Result "0-1"]
[ECO "E12"]
[WhiteElo "1882"]
[BlackElo "2580"]
[Annotator "TA"]
[PlyCount "90"]
[EventDate "2024.03.27"]
[EventType "swiss"]
[EventCountry "ESP"]
[SourceTitle "playchess.com"]
[Source "ChessBase"]
[SourceQuality "1"]
[TimeControl "5400+30"]

{[%evp 9,89,12,9,-10,-10,-12,-6,-7,-9,-9,-5,-13,-9,-8,-18,-28,-20,-19,-24,-26,-3,-17,-4,-19,-12,-14,-10,-33,-46,-43,-42,-31,-22,-64,-66,-83,-61,-69,-49,-64,-52,-94,-58,-214,-77,-109,-107,-126,-118,-125,0,-120,0,-93,-71,-96,-91,-141,-135,-128,-108,-114,-108,-117,-83,-453,-462,-548,-548,-531,-531,-531,-527,-2145,-2034,-1547,-1535,-1249,-772,-857,-804,-29999]} 1. d4 {[%emt 0:00:07]} e6 {[%emt 0:00:44]} 2. c4 {[%emt 0:00:41]} b6 {[%emt 0:00:10]} 3. Nf3 {[%emt 0:00:26]} Bb7 {[%emt 0:00:22]} 4. a3 {[%emt 0:00:29]} Nf6 {[%emt 0:00:30]} 5. Nc3 {[%emt 0:00:52]} d5 {[%emt 0:00:12]} 6. g3 {[%emt 0:04:50]} dxc4 {[%emt 0:02:41]} 7. Qa4+ {[%emt 0:02:08]} Nbd7 {[%emt 0:01:28]} 8. Qxc4 {[%emt 0:07:56] The position is equal.} c5 {[%emt 0:00:36]} 9. Bg2 {[%emt 0:06:39]} a6 {[%emt 0:01:09]} 10. dxc5 {[%emt 0:03:55]} Bxc5 {[%emt 0:02:04]} 11. O-O {[%emt 0:00:19]} O-O {[%emt 0:00:58]} 12. b4 {[%emt 0:05:06]} Be7 {[%emt 0:05:32]} 13. Bb2 {[%emt 0:01:06]} Rc8 {[%emt 0:00:16]} 14. Qb3 {[%emt 0:06:39]} Rc7 {[%emt 0:00:35]} 15. Rfc1 {[%emt 0:08:51]} Qa8 {[%emt 0:02:43]} 16. Ne1 {[%emt 0:09:13]} Bxg2 {[%emt 0:05:06]} 17. Nxg2 {[%emt 0:00:07]} Rfc8 {[%emt 0:00:08]} 18. Na4 {[%emt 0:11:05]} b5 {[%emt 0:17:37]} 19. Rxc7 {[%emt 0:01:16]} Rxc7 {[%emt 0:00:05]} 20. Nc3 {[%emt 0:02:40]} Qb7 {[%emt 0:02:52]} 21. Nf4 {[%emt 0:05:18]} Nb6 {[%emt 0:11:12]} 22. Nd3 {[%emt 0:06:30]} Nc4 {[%emt 0:02:21]} 23. a4 {[%emt 0:00:39]} Nd7 {[%emt 0:07:14]} 24. axb5 {[%emt 0:00:42]} axb5 {[%emt 0:00:07]} 25. Rc1 {[%emt 0:13:02]} h6 {[%emt 0:06:34]} 26. Qa2 $2 {[%emt 0:01:46] [#]} ({White should play} 26. Nb1 $15) 26... Rc8 {[%emt 0:08:45]} (26... Bg5 $1 $19 {[%cal Oc4b2] and Black stays clearly on top. Strongly threatening ...Nxb2!} 27. Nf4 Nxb2 28. Qxb2 e5) 27. Qb3 {[%emt 0:00:57]} Bg5 {[%emt 0:07:08][%cal Oc4b2]} 28. Ra1 {[%emt 0:00:34]} Bf6 {[%emt 0:02:39]} 29. Rc1 {[%emt 0:00:34]} Bg5 {[%emt 0:06:19][%cal Oc4b2]} 30. Ra1 $1 {[%emt 0:00:08]} Be7 {[%emt 0:00:09]} 31. Rc1 $1 {[%emt 0:00:39]} e5 {[%emt 0:00:37]} 32. Nd1 {[%emt 0:00:42]} Bg5 $36 {[%emt 0:02:37][%mdl 2048] Black is in control. Black is much more active.} 33. Rc2 {[%emt 0:00:32] [#]} (33. e3 $142) 33... e4 $1 $17 {[%emt 0:00:28]} 34. Nf4 {[%emt 0:00:30]} Bxf4 {[%emt 0:01:31]} 35. gxf4 {[%emt 0:00:13]} Ndb6 {[%emt 0:00:12] And now ...Rd8 would win. A dynamic duo of knights.} 36. Ne3 {[%emt 0:00:29]} Qd7 {[%emt 0:01:29] Prevents Bd4. ...Rc6 would now be deadly.} 37. Nxc4 $2 {[%emt 0:00:38][%mdl 8192]} (37. Kh1 $17 {is more resistant.}) 37... Nxc4 $19 {[%emt 0:01:08]} 38. Qc3 {[%emt 0:00:17][%csl Gb2][%cal Rc3g7] White is weak on the light squares} Qd1+ {[%emt 0:00:49]} 39. Kg2 {[%emt 0:00:20][%csl Gb2][%cal Rc3g7] [#]} Ne3+ $1 {[%emt 0:00:16][%mdl 512]} 40. Qxe3 {[%emt 0:01:00]} Rxc2 {[%emt 0:00:17] KQR-KQB} 41. Bd4 {[%emt 0:00:33]} Rxe2 {[%emt 0:01:58]} 42. Qc3 {[%emt 0:00:30]} Rc2 {[%emt 0:00:15]} 43. Qe3 {[%emt 0:00:30]} Qg4+ {[%emt 0:00:23]} 44. Kf1 {[%emt 0:00:29]} Qf3 {[%emt 0:00:18][%cal Rf3h1]} 45. Bc5 {[%emt 0:00:32]} Qh1# {[%emt 0:00:14] Weighted Error Value: White=0.61/Black=0.37.  Loses game:     	White=1     	---        Mistake:       	White=2     	Black=1      Inaccurate:     	White=4     	Black=1      OK:         	White=14    	Black=15     Best:        	White=2     	Black=2      Strong:       	White=2     	---} 0-1

[Event "50th La Roda Open 2024"]
[Site "La Roda"]
[Date "2024.03.27"]
[Round "1.8"]
[White "Sonis, Francesco"]
[Black "Liu, Meng"]
[Result "1-0"]
[ECO "E15"]
[WhiteElo "2562"]
[BlackElo "1877"]
[Annotator "TA"]
[PlyCount "65"]
[EventDate "2024.03.27"]
[EventType "swiss"]
[EventCountry "ESP"]
[SourceTitle "playchess.com"]
[Source "ChessBase"]
[SourceQuality "1"]
[TimeControl "5400+30"]

{[%evp 17,65,0,0,0,3,14,10,0,0,0,0,0,6,16,15,16,166,177,187,163,166,134,136,134,225,127,127,93,131,118,191,41,36,43,56,1,25,20,17,30,29,12,383,367,370,355,368,366,647,626]} 1. d4 {[%emt 0:00:03]} Nf6 {[%emt 0:00:04]} 2. c4 {[%emt 0:00:05]} e6 {[%emt 0:00:04]} 3. Nf3 {[%emt 0:00:06]} b6 {[%emt 0:00:06]} 4. g3 {[%emt 0:00:04]} Ba6 {[%emt 0:00:04]} 5. Nbd2 {[%emt 0:00:05]} Bb7 {[%emt 0:02:09]} 6. Bg2 {[%emt 0:00:21]} c5 {[%emt 0:00:43]} 7. e3 {[%emt 0:00:14]} cxd4 {[%emt 0:04:01]} 8. exd4 {[%emt 0:00:01]} Be7 {[%emt 0:01:55]} 9. O-O {[%emt 0:00:08]} O-O {[%emt 0:00:30]} 10. b3 {[%emt 0:00:05]} d5 {[%emt 0:00:51]} 11. Bb2 {[%emt 0:00:02]} Nc6 {[%emt 0:01:15]} 12. Qe2 {[%emt 0:00:45] The position is equal.} Rc8 {[%emt 0:00:34]} 13. Rfd1 {[%emt 0:01:04]} Rc7 {[%emt 0:05:50]} 14. Rac1 {[%emt 0:01:24]} Qa8 {[%emt 0:01:29]} 15. Nf1 {[%emt 0:08:15]} Rfc8 {[%emt 0:05:18]} 16. Ne3 {[%emt 0:07:53]} dxc4 {[%emt 0:09:08]} (16... Na5 $11) 17. bxc4 $18 {[%emt 0:06:10][%cal Bb3c4,Bc4d5][%mdl 32]} Na5 {[%emt 0:13:26] [#]} 18. d5 $1 {[%emt 0:00:14][%mdl 512]} exd5 {[%emt 0:05:26]} 19. cxd5 {[%emt 0:00:46]} Rxc1 {[%emt 0:04:14]} 20. Bxc1 {[%emt 0:00:02]} ({But not} 20. Rxc1 $6 Rxc1+ 21. Bxc1 Bc5 $11) 20... Bf8 {[%emt 0:05:12]} (20... Re8 $16 {was necessary.}) 21. Nh4 {[%emt 0:02:21]} (21. Bb2 $18) 21... Re8 $16 {[%emt 0:09:46][%cal Of6d5]} 22. Qd3 {[%emt 0:02:25]} Nd7 {[%emt 0:04:32]} 23. Bb2 {[%emt 0:05:48] aiming for Be4.} Ne5 {[%emt 0:02:02]} (23... Qd8 $16) 24. Qf1 {[%emt 0:04:54]} (24. Bxe5 $18 Rxe5 25. Nf3) 24... Qc8 $14 {[%emt 0:01:10]} 25. Rc1 {[%emt 0:01:39]} Qd7 {[%emt 0:01:56]} 26. Qd1 {[%emt 0:00:11]} ({White should play} 26. Qe2 $14) 26... Ba6 $1 $11 {[%emt 0:02:13]} 27. Nhf5 {[%emt 0:08:17][%cal Bh4f5,Bf5d4,Bd4c6][%mdl 32] Bh3 would now be deadly.} g6 $1 {[%emt 0:20:02]} 28. Bxe5 {[%emt 0:04:03]} Rxe5 {[%emt 0:00:00]} 29. Nd4 $36 {[%emt 0:00:16][%mdl 2048] Ng4 is the strong threat. White is more active.} Bc5 $2 {[%emt 0:00:00][%mdl 8192]} (29... Re8 $11 {and Black has nothing to worry.}) 30. Ng4 $18 {[%emt 0:00:32] Excellent horsemanship.} Qe7 {[%emt 0:00:00] Prevents Nf6+} 31. Nxe5 {[%emt 0:00:05]} Qxe5 {[%emt 0:00:00]} 32. Nc6 {[%emt 0:00:34]} Qf6 {[%emt 0:00:00] [#]} (32... Nxc6 33. dxc6 Kg7) 33. Rxc5 $1 {[%emt 0:01:08][%mdl 512] Weighted Error Value: White=0.24 (precise) /Black=0.64.  Loses game:     	---       	Black=1      Mistake:       	White=3     	Black=4      Inaccurate:     	---       	Black=1      OK:         	White=12    	Black=8      Best:        	White=1     	Black=1      Strong:       	---       	Black=2      Brilliant:      	White=1     	---} 1-0

[Event "50th La Roda Open 2024"]
[Site "La Roda"]
[Date "2024.03.27"]
[Round "1.9"]
[White "Buzica Patrin, Teo Adrian"]
[Black "Siddharth, Jagadeesh"]
[Result "0-1"]
[ECO "C01"]
[WhiteElo "1876"]
[BlackElo "2490"]
[Annotator "TA"]
[PlyCount "110"]
[EventDate "2024.03.27"]
[EventType "swiss"]
[EventCountry "ESP"]
[SourceTitle "playchess.com"]
[Source "ChessBase"]
[SourceQuality "1"]
[TimeControl "5400+30"]

{[%evp 13,110,0,18,-7,6,6,10,-7,-12,-31,-20,-65,-55,-52,-30,-47,-20,-74,-50,-176,0,-8,37,-232,-221,-195,-214,-197,-68,-54,-57,-76,-58,-126,-37,-116,-79,-79,-85,-104,-100,-95,-91,-78,-85,-113,0,0,2,-14,25,0,0,0,0,0,54,64,54,60,56,52,65,-87,-77,-75,-91,-346,-183,-510,-500,-504,-493,-685,-636,-928,-917,-1534,-822,-895,-894,-1021,-809,-1010,-998,-988,-937,-1062,-1011,-1083,-1075,-1187,-1166,-1411,-1325,-1265,-1237,-5037,-1039]} 1. e4 {[%emt 0:00:10]} e6 {[%emt 0:00:24]} 2. d4 {[%emt 0:00:14]} d5 {[%emt 0:00:06]} 3. exd5 {[%emt 0:00:31]} exd5 {[%emt 0:00:07]} 4. Bd3 {[%emt 0:00:20]} Nc6 {[%emt 0:00:09]} 5. c3 {[%emt 0:00:21]} Bd6 {[%emt 0:00:13]} 6. h3 {[%emt 0:01:37]} Nge7 {[%emt 0:01:20]} 7. Qc2 {[%emt 0:04:55] C01: Französische Verteidigung (Abtauschvariante).} Be6 {[%emt 0:04:40]} 8. Nf3 {[%emt 0:02:20]} h6 {[%emt 0:04:44]} 9. Nbd2 {[%emt 0:03:12]} Qd7 {[%emt 0:01:21]} 10. Nf1 {[%emt 0:04:06]} O-O-O {[%emt 0:00:52]} 11. b4 $146 {[%emt 0:04:39]} ({Predecessor:} 11. Bd2 g5 12. O-O-O f6 13. Ng3 h5 14. h4 g4 15. Ng1 Bxg3 16. fxg3 Bf5 17. Ne2 Bxd3 18. Qxd3 {0-1 Delgado Crespo,M (2260)-Goryachkina,A (2478) EU-chT (Women) 21st 2017 (5.4)}) 11... Rde8 {[%emt 0:06:41]} 12. Qa4 {[%emt 0:11:36]} Ng6 {[%emt 0:08:13]} 13. Ne3 {[%emt 0:15:56]} Nf4 {[%emt 0:02:38]} (13... Kb8 {vereinfacht} 14. Bxg6 fxg6 15. b5 Nd8) 14. Bf1 {[%emt 0:01:58]} Bf5 {[%emt 0:01:29]} 15. Kd2 {[%emt 0:01:37]} (15. b5 $11 {bleibt in der Remisbreite.} Nb8 16. Qxa7) 15... Kb8 $17 {[%emt 0:06:28]} 16. Bb5 {[%emt 0:04:06] [#]} (16. Nxf5 $15 Qxf5 17. Qc2) 16... Nxg2 $2 {[%emt 0:06:15]} (16... Bg6 $1 $19 {[%cal Oe8e3][%mdl 512] Und jetzt ...Rxe3! wäre schön.} 17. Ne1 Rxe3 18. fxe3 Nh5) 17. Nxg2 $11 {[%emt 0:10:47]} Be4 {[%emt 0:00:10]} 18. Be2 $2 {[%emt 0:12:15][%mdl 8192]} (18. Nfe1 $1 $14 {nur das bewahrt Vorteil.}) 18... Bxf3 $1 $19 {[%emt 0:00:07]} 19. Bxf3 {[%emt 0:00:19]} Qf5 {[%emt 0:00:07]} 20. Ne1 {[%emt 0:05:12] [#]} (20. Qd1 $2 Nxd4 21. Ba3 Nxf3+ (21... Qxf3 $2 22. Qxf3 Nxf3+ 23. Kd1 $19) 22. Kc1 Ne5 $19) 20... Rxe1 {[%emt 0:05:40]} (20... Bf4+ $1 $19 {[%mdl 512]} 21. Kd1 Rxe1+ 22. Kxe1 Bxc1 23. Rxc1 Qxf3) 21. Rxe1 $15 {[%emt 0:01:00]} Qxf3 {[%emt 0:00:09]} 22. Qb5 $1 {[%emt 0:06:04]} Qxh3 {[%emt 0:05:40]} 23. Qd3 {[%emt 0:02:41]} (23. Qxd5 $15 Nxb4 24. cxb4 Bxb4+ 25. Ke2 Qg4+ (25... Bxe1 26. Rb1 $11) 26. Kf1 Bxe1 (26... Qh3+ 27. Ke2 $11) 27. Rb1) 23... Qg2 {[%emt 0:01:07]} (23... Qd7 $17 24. Rh1 Re8) 24. Qe2 {[%emt 0:03:57]} (24. Kc2 $15) 24... a5 {[%emt 0:00:02]} 25. a3 {[%emt 0:00:20]} h5 {[%emt 0:00:28]} 26. Kc2 {[%emt 0:00:37]} h4 {[%emt 0:04:27]} 27. Bd2 {[%emt 0:00:11]} Qg6+ {[%emt 0:00:35]} 28. Qd3 {[%emt 0:01:01]} Qf6 {[%emt 0:00:01]} 29. f4 {[%emt 0:00:24]} h3 {[%emt 0:01:18]} (29... Bxf4 30. Rf1 g5 31. Bxf4 gxf4 32. Qd2 $11) ({Vorzuziehen ist} 29... a4 $17 {[%cal Oc6a7]} 30. Re2 Ne7 (30... Bxf4 31. Rf2 $11)) 30. Rh1 {[%emt 0:00:34]} h2 {[%emt 0:00:05]} 31. Rae1 {[%emt 0:01:34]} Rh4 {[%emt 0:04:03]} 32. Qg3 {[%emt 0:01:08]} Qf5+ {[%emt 0:02:35]} 33. Kb2 {[%emt 0:00:30]} Rh3 {[%emt 0:00:06]} 34. Qf2 {[%emt 0:00:25]} Qd3 {[%emt 0:09:18]} ({Besser ist} 34... g5 $11) 35. Re3 $1 $14 {[%emt 0:00:15]} Rxe3 {[%emt 0:00:02]} 36. Qxe3 {[%emt 0:01:38]} Qc4 (36... Qxe3 37. Bxe3 g5 (37... axb4 38. axb4 Kc8 39. Rxh2 $16) 38. Rxh2 (38. fxg5 axb4 39. axb4 Ka7 $15) 38... gxf4 39. Bc1 $18) 37. Rxh2 {[%emt 0:00:00]} a4 {[%emt 0:00:01]} 38. Kc1 $2 {[%emt 0:00:02] [#]} (38. Bc1 $1 $14 {behält die Oberhand.}) 38... Qb3 $1 $17 {[%emt 0:01:09]} 39. Be1 {[%emt 0:00:24]} g5 {[%emt 0:01:36]} 40. Bg3 $2 {[%emt 0:00:45][%mdl 8192]} ({Jedoch nicht} 40. Rh8+ $2 Ka7 41. Qd3 (41. fxg5 $2 {zu gefräßig.} Nxb4 42. axb4 a3 $19) 41... Qxa3+ (41... Bxf4+ $2 42. Bd2 $19) 42. Kd1 Qa1+ (42... Bxf4 $2 43. Qc2 $19) 43. Ke2 gxf4 $19 (43... Bxf4 $2 44. Qc2 $19)) (40. Qe8+ $17 {ist der einzige Weg für Weiss..} Ka7 41. Rb2 Bxf4+ (41... Qxa3 42. Kb1 $11) 42. Kb1 Qd1+ (42... Qxa3 43. Qd7 $11) 43. Ka2) 40... Qxa3+ {[%emt 0:01:34]} (40... gxf4 $142 41. Bxf4 Bxf4 (41... Qxa3+ $2 42. Kb1 $19) 42. Qxf4 Qxa3+ (42... Qxc3+ $2 43. Kb1 $19) 43. Kb1 Qxc3) 41. Kd1 $2 {[%emt 0:00:26]} (41. Rb2 {ist zäher.}) 41... Qb3+ $19 {[%emt 0:00:48]} 42. Ke2 {[%emt 0:00:47]} a3 {[%emt 0:01:07]} 43. Rh1 {[%emt 0:00:26]} a2 {[%emt 0:00:53]} 44. Qc1 {[%emt 0:00:35]} gxf4 {[%emt 0:00:23]} 45. Bf2 {[%emt 0:00:21]} f3+ {[%emt 0:00:21]} 46. Kxf3 {[%emt 0:00:39]} Nxb4 {[%emt 0:00:09]} 47. Kg4 {[%emt 0:00:11]} Nc2 {[%emt 0:00:05]} 48. Qg5 {[%emt 0:00:51]} a1=Q {[%emt 0:00:17]} 49. Rxa1 {[%emt 0:00:19]} Nxa1 {[%emt 0:00:03]} 50. Qg8+ {[%emt 0:00:18]} Ka7 {[%emt 0:00:02]} 51. Qxf7 {[%emt 0:00:14]} Qc4 {[%emt 0:00:39]} 52. Qf3 {[%emt 0:00:54]} Nb3 {[%emt 0:00:09]} 53. Qd1 {[%emt 0:00:38]} Qxc3 {[%emt 0:00:08]} 54. Qb1 {[%emt 0:00:24]} b6 {[%emt 0:00:41]} 55. Qd1 {[%emt 0:00:41]} Kb7 {[%emt 0:00:08]} 0-1

[Event "50th La Roda Open 2024"]
[Site "La Roda"]
[Date "2024.03.27"]
[Round "1.10"]
[White "Elias Reyes, Jorge Roberto"]
[Black "Alvarez Lee, Felix"]
[Result "1-0"]
[ECO "C54"]
[WhiteElo "2473"]
[BlackElo "1873"]
[Annotator "TA"]
[PlyCount "35"]
[EventDate "2024.03.27"]
[EventType "swiss"]
[EventCountry "ESP"]
[SourceTitle "playchess.com"]
[Source "ChessBase"]
[SourceQuality "1"]
[TimeControl "5400+30"]

{[%evp 9,35,0,8,-61,-54,-69,108,116,141,143,157,159,137,131,190,200,255,255,339,325,413,412,418,407,656,673,611,610]} 1. e4 {[%emt 0:01:19]} e5 {[%emt 0:00:10]} 2. Nf3 {[%emt 0:00:10]} Nc6 {[%emt 0:00:09]} 3. Bc4 {[%emt 0:00:07]} Bc5 {[%emt 0:00:09]} 4. c3 {[%emt 0:00:15]} Nf6 {[%emt 0:00:07]} 5. d4 {[%emt 0:01:30]} exd4 {[%emt 0:00:10]} 6. b4 {[%emt 0:00:03]} (6. cxd4 $11 Bb4+ 7. Bd2) 6... Bb6 $1 $15 {[%emt 0:00:32]} 7. e5 {[%emt 0:00:20] [#]} O-O $2 {[%emt 0:20:19]} 8. exf6 $16 {[%emt 0:01:57] White is better.} Re8+ {[%emt 0:00:21] [#]} 9. Be2 $1 {[%emt 0:14:34]} Qxf6 {[%emt 0:03:02]} 10. O-O {[%emt 0:02:45]} dxc3 {[%emt 0:04:16] [#] aiming for ...c2.} 11. Bg5 $1 {[%emt 0:02:31]} Qg6 {[%emt 0:05:50]} (11... c2 $16 12. Qxc2 Qe6 (12... Qxa1 $2 {too greedy.} 13. Nc3 $18)) 12. Nxc3 {[%emt 0:01:51][%cal Bb1c3,Bc3d5,Bd5f4,Bf4h3][%mdl 32] Strongly threatening Bd3.} d6 {[%emt 0:01:06]} 13. Nd5 {[%emt 0:05:19]} Kh8 {[%emt 0:08:51]} 14. Be3 {[%emt 0:05:03]} Bxe3 {[%emt 0:05:15]} 15. fxe3 {[%emt 0:00:12]} ({Resist} 15. Nxe3 Nxb4 16. a3 Nc6 $18) 15... Rb8 {[%emt 0:01:55]} 16. b5 {[%emt 0:05:05]} Bh3 {[%emt 0:05:34]} (16... Ne5 $142 17. Nxc7 Rf8) 17. Nf4 $18 {[%emt 0:00:19]} (17. bxc6 $2 Qxg2#) 17... Qe4 {[%emt 0:00:55]} 18. Nxh3 {[%emt 0:00:16] Weighted Error Value: White=0.11 (very precise) /Black=0.68.  Mistake:       	---       	Black=3      Inaccurate:     	---       	Black=1      OK:         	White=4     	Black=3      Best:        	White=1     	---        Strong:       	White=2     	Black=1} 1-0